{"text_format":"1","workbook":"xlsx","n_sheets":10,"sheets":["Лист1","Имена","Усл","Кат","скв1","скв2","скв3","скв4","скв5","1"],"not_rendered":{"charts":0,"images":0,"macros":0,"external_links":1,"defined_names":7,"comments":0,"pivot_tables":0},"unopened":[],"bounds":{"document_bytes":16777216,"sheet_cells":100000,"rows_first":2000,"rows_last":500,"rows_between":2000,"halvings":0,"cell_chars":16384,"cell_head_chars":4096},"cells_cut":0,"cells_raw":0,"read":"whole","date_system":"1900"}

{"sheet":"Лист1","index":0,"n_rows":3,"n_cols":6,"rows_kept":3,"cut":false,"hidden":false,"merged":[]}
["130м-2",{"$f":"INDIRECT(\"Имена!C6\",TRUE)","v":"скв1"},null,{"$f":"MATCH(A1,INDIRECT(\"'\"&B1&\"'!$G1:$G50\"),)","v":10},{"$f":"ADDRESS(D1,5,1,1,B1)","v":"скв1!$E$10"},{"$f":"INDIRECT(E1,TRUE)","v":1.8}]
[null,{"$f":"INDIRECT(\"Имена!C7\",TRUE)","v":"скв2"},null,{"$f":"MATCH(A1,скв1!$G:$G,0)","v":10},{"$f":"ADDRESS(D2,5,1,1,B2)","v":"скв2!$E$10"},{"$f":"INDIRECT(E2,TRUE)","v":0.3}]
[null,null,null,"ПОИСКПОЗ(A1;'ск в1'!$G:$G;0)"]

{"sheet":"Имена","index":1,"n_rows":22,"n_cols":11,"rows_kept":22,"cut":false,"hidden":false,"merged":[]}
[]
[]
[]
[]
[null,null,"Имена всех листов активной книги","Статус",null,null,null,null,"не нужные листы",null,"статусы"]
[null,{"$f":"IF(ПРОВЕРКА,IF(ISNA(MATCH(ЛИСТ.ИМЯ,$I$6:$I$13,0)),HYPERLINK(ЛИСТ.СПИСОК&\"'!A1\",ЛИСТ.ИМЯ),\"\"),\"\")","v":""},{"$f":"IFERROR(HYPERLINK(MID(ЛИСТ.СПИСОК,1,SEARCH(\"'\",ЛИСТ.СПИСОК)-1)&INDEX($B$6:$B$300,SMALL(IF(($B$6:$B$300<>\"\")*(COUNTIF($C$5:C5,$B$6:$B$300)=0),ROW($B$6:$B$300)-5),1))&\"!A1\",INDEX($B$6:$B$300,SMALL(IF(($B$6:$B$300<>\"\")*(COUNTIF($C$5:C5,$B$6:$B$300)=0),ROW($B$6:$B$300)-5),1))),\"\")","v":"скв1"},"учитывать",null,null,null,null,"Имена",null,"учитывать"]
[null,{"$f":"IF(ПРОВЕРКА,IF(ISNA(MATCH(ЛИСТ.ИМЯ,$I$6:$I$13,0)),HYPERLINK(ЛИСТ.СПИСОК&\"'!A1\",ЛИСТ.ИМЯ),\"\"),\"\")","v":""},{"$f":"IFERROR(HYPERLINK(MID(ЛИСТ.СПИСОК,1,SEARCH(\"'\",ЛИСТ.СПИСОК)-1)&INDEX($B$6:$B$300,SMALL(IF(($B$6:$B$300<>\"\")*(COUNTIF($C$5:C6,$B$6:$B$300)=0),ROW($B$6:$B$300)-5),1))&\"!A1\",INDEX($B$6:$B$300,SMALL(IF(($B$6:$B$300<>\"\")*(COUNTIF($C$5:C6,$B$6:$B$300)=0),ROW($B$6:$B$300)-5),1))),\"\")","v":"скв2"},"учитывать",null,null,null,null,"Усл",null,"не учитывать"]
[null,{"$f":"IF(ПРОВЕРКА,IF(ISNA(MATCH(ЛИСТ.ИМЯ,$I$6:$I$13,0)),HYPERLINK(ЛИСТ.СПИСОК&\"'!A1\",ЛИСТ.ИМЯ),\"\"),\"\")","v":""},{"$f":"IFERROR(HYPERLINK(MID(ЛИСТ.СПИСОК,1,SEARCH(\"'\",ЛИСТ.СПИСОК)-1)&INDEX($B$6:$B$300,SMALL(IF(($B$6:$B$300<>\"\")*(COUNTIF($C$5:C7,$B$6:$B$300)=0),ROW($B$6:$B$300)-5),1))&\"!A1\",INDEX($B$6:$B$300,SMALL(IF(($B$6:$B$300<>\"\")*(COUNTIF($C$5:C7,$B$6:$B$300)=0),ROW($B$6:$B$300)-5),1))),\"\")","v":"скв3"},"учитывать",null,null,null,null,"Кат"]
[null,{"$f":"IF(ПРОВЕРКА,IF(ISNA(MATCH(ЛИСТ.ИМЯ,$I$6:$I$13,0)),HYPERLINK(ЛИСТ.СПИСОК&\"'!A1\",ЛИСТ.ИМЯ),\"\"),\"\")","v":""},{"$f":"IFERROR(HYPERLINK(MID(ЛИСТ.СПИСОК,1,SEARCH(\"'\",ЛИСТ.СПИСОК)-1)&INDEX($B$6:$B$300,SMALL(IF(($B$6:$B$300<>\"\")*(COUNTIF($C$5:C8,$B$6:$B$300)=0),ROW($B$6:$B$300)-5),1))&\"!A1\",INDEX($B$6:$B$300,SMALL(IF(($B$6:$B$300<>\"\")*(COUNTIF($C$5:C8,$B$6:$B$300)=0),ROW($B$6:$B$300)-5),1))),\"\")","v":"скв4"},"учитывать",null,null,null,null,"лист1"]
[null,{"$f":"IF(ПРОВЕРКА,IF(ISNA(MATCH(ЛИСТ.ИМЯ,$I$6:$I$13,0)),HYPERLINK(ЛИСТ.СПИСОК&\"'!A1\",ЛИСТ.ИМЯ),\"\"),\"\")","v":"скв1"},{"$f":"IFERROR(HYPERLINK(MID(ЛИСТ.СПИСОК,1,SEARCH(\"'\",ЛИСТ.СПИСОК)-1)&INDEX($B$6:$B$300,SMALL(IF(($B$6:$B$300<>\"\")*(COUNTIF($C$5:C9,$B$6:$B$300)=0),ROW($B$6:$B$300)-5),1))&\"!A1\",INDEX($B$6:$B$300,SMALL(IF(($B$6:$B$300<>\"\")*(COUNTIF($C$5:C9,$B$6:$B$300)=0),ROW($B$6:$B$300)-5),1))),\"\")","v":"скв5"}]
[null,{"$f":"IF(ПРОВЕРКА,IF(ISNA(MATCH(ЛИСТ.ИМЯ,$I$6:$I$13,0)),HYPERLINK(ЛИСТ.СПИСОК&\"'!A1\",ЛИСТ.ИМЯ),\"\"),\"\")","v":"скв2"},{"$f":"IFERROR(HYPERLINK(MID(ЛИСТ.СПИСОК,1,SEARCH(\"'\",ЛИСТ.СПИСОК)-1)&INDEX($B$6:$B$300,SMALL(IF(($B$6:$B$300<>\"\")*(COUNTIF($C$5:C10,$B$6:$B$300)=0),ROW($B$6:$B$300)-5),1))&\"!A1\",INDEX($B$6:$B$300,SMALL(IF(($B$6:$B$300<>\"\")*(COUNTIF($C$5:C10,$B$6:$B$300)=0),ROW($B$6:$B$300)-5),1))),\"\")","v":"1"}]
[null,{"$f":"IF(ПРОВЕРКА,IF(ISNA(MATCH(ЛИСТ.ИМЯ,$I$6:$I$13,0)),HYPERLINK(ЛИСТ.СПИСОК&\"'!A1\",ЛИСТ.ИМЯ),\"\"),\"\")","v":"скв3"},{"$f":"IFERROR(HYPERLINK(MID(ЛИСТ.СПИСОК,1,SEARCH(\"'\",ЛИСТ.СПИСОК)-1)&INDEX($B$6:$B$300,SMALL(IF(($B$6:$B$300<>\"\")*(COUNTIF($C$5:C11,$B$6:$B$300)=0),ROW($B$6:$B$300)-5),1))&\"!A1\",INDEX($B$6:$B$300,SMALL(IF(($B$6:$B$300<>\"\")*(COUNTIF($C$5:C11,$B$6:$B$300)=0),ROW($B$6:$B$300)-5),1))),\"\")","v":""}]
[null,{"$f":"IF(ПРОВЕРКА,IF(ISNA(MATCH(ЛИСТ.ИМЯ,$I$6:$I$13,0)),HYPERLINK(ЛИСТ.СПИСОК&\"'!A1\",ЛИСТ.ИМЯ),\"\"),\"\")","v":"скв4"},{"$f":"IFERROR(HYPERLINK(MID(ЛИСТ.СПИСОК,1,SEARCH(\"'\",ЛИСТ.СПИСОК)-1)&INDEX($B$6:$B$300,SMALL(IF(($B$6:$B$300<>\"\")*(COUNTIF($C$5:C12,$B$6:$B$300)=0),ROW($B$6:$B$300)-5),1))&\"!A1\",INDEX($B$6:$B$300,SMALL(IF(($B$6:$B$300<>\"\")*(COUNTIF($C$5:C12,$B$6:$B$300)=0),ROW($B$6:$B$300)-5),1))),\"\")","v":""}]
[null,{"$f":"IF(ПРОВЕРКА,IF(ISNA(MATCH(ЛИСТ.ИМЯ,$I$6:$I$13,0)),HYPERLINK(ЛИСТ.СПИСОК&\"'!A1\",ЛИСТ.ИМЯ),\"\"),\"\")","v":"скв5"},{"$f":"IFERROR(HYPERLINK(MID(ЛИСТ.СПИСОК,1,SEARCH(\"'\",ЛИСТ.СПИСОК)-1)&INDEX($B$6:$B$300,SMALL(IF(($B$6:$B$300<>\"\")*(COUNTIF($C$5:C13,$B$6:$B$300)=0),ROW($B$6:$B$300)-5),1))&\"!A1\",INDEX($B$6:$B$300,SMALL(IF(($B$6:$B$300<>\"\")*(COUNTIF($C$5:C13,$B$6:$B$300)=0),ROW($B$6:$B$300)-5),1))),\"\")","v":""}]
[null,{"$f":"IF(ПРОВЕРКА,IF(ISNA(MATCH(ЛИСТ.ИМЯ,$I$6:$I$13,0)),HYPERLINK(ЛИСТ.СПИСОК&\"'!A1\",ЛИСТ.ИМЯ),\"\"),\"\")","v":"1"},{"$f":"IFERROR(HYPERLINK(MID(ЛИСТ.СПИСОК,1,SEARCH(\"'\",ЛИСТ.СПИСОК)-1)&INDEX($B$6:$B$300,SMALL(IF(($B$6:$B$300<>\"\")*(COUNTIF($C$5:C14,$B$6:$B$300)=0),ROW($B$6:$B$300)-5),1))&\"!A1\",INDEX($B$6:$B$300,SMALL(IF(($B$6:$B$300<>\"\")*(COUNTIF($C$5:C14,$B$6:$B$300)=0),ROW($B$6:$B$300)-5),1))),\"\")","v":""}]
[null,{"$f":"IF(ПРОВЕРКА,IF(ISNA(MATCH(ЛИСТ.ИМЯ,$I$6:$I$13,0)),HYPERLINK(ЛИСТ.СПИСОК&\"'!A1\",ЛИСТ.ИМЯ),\"\"),\"\")","v":""},{"$f":"IFERROR(HYPERLINK(MID(ЛИСТ.СПИСОК,1,SEARCH(\"'\",ЛИСТ.СПИСОК)-1)&INDEX($B$6:$B$300,SMALL(IF(($B$6:$B$300<>\"\")*(COUNTIF($C$5:C15,$B$6:$B$300)=0),ROW($B$6:$B$300)-5),1))&\"!A1\",INDEX($B$6:$B$300,SMALL(IF(($B$6:$B$300<>\"\")*(COUNTIF($C$5:C15,$B$6:$B$300)=0),ROW($B$6:$B$300)-5),1))),\"\")","v":""}]
[null,{"$f":"IF(ПРОВЕРКА,IF(ISNA(MATCH(ЛИСТ.ИМЯ,$I$6:$I$13,0)),HYPERLINK(ЛИСТ.СПИСОК&\"'!A1\",ЛИСТ.ИМЯ),\"\"),\"\")","v":""},{"$f":"IFERROR(HYPERLINK(MID(ЛИСТ.СПИСОК,1,SEARCH(\"'\",ЛИСТ.СПИСОК)-1)&INDEX($B$6:$B$300,SMALL(IF(($B$6:$B$300<>\"\")*(COUNTIF($C$5:C16,$B$6:$B$300)=0),ROW($B$6:$B$300)-5),1))&\"!A1\",INDEX($B$6:$B$300,SMALL(IF(($B$6:$B$300<>\"\")*(COUNTIF($C$5:C16,$B$6:$B$300)=0),ROW($B$6:$B$300)-5),1))),\"\")","v":""}]
[null,{"$f":"IF(ПРОВЕРКА,IF(ISNA(MATCH(ЛИСТ.ИМЯ,$I$6:$I$13,0)),HYPERLINK(ЛИСТ.СПИСОК&\"'!A1\",ЛИСТ.ИМЯ),\"\"),\"\")","v":""},{"$f":"IFERROR(HYPERLINK(MID(ЛИСТ.СПИСОК,1,SEARCH(\"'\",ЛИСТ.СПИСОК)-1)&INDEX($B$6:$B$300,SMALL(IF(($B$6:$B$300<>\"\")*(COUNTIF($C$5:C17,$B$6:$B$300)=0),ROW($B$6:$B$300)-5),1))&\"!A1\",INDEX($B$6:$B$300,SMALL(IF(($B$6:$B$300<>\"\")*(COUNTIF($C$5:C17,$B$6:$B$300)=0),ROW($B$6:$B$300)-5),1))),\"\")","v":""}]
[null,{"$f":"IF(ПРОВЕРКА,IF(ISNA(MATCH(ЛИСТ.ИМЯ,$I$6:$I$13,0)),HYPERLINK(ЛИСТ.СПИСОК&\"'!A1\",ЛИСТ.ИМЯ),\"\"),\"\")","v":""},{"$f":"IFERROR(HYPERLINK(MID(ЛИСТ.СПИСОК,1,SEARCH(\"'\",ЛИСТ.СПИСОК)-1)&INDEX($B$6:$B$300,SMALL(IF(($B$6:$B$300<>\"\")*(COUNTIF($C$5:C18,$B$6:$B$300)=0),ROW($B$6:$B$300)-5),1))&\"!A1\",INDEX($B$6:$B$300,SMALL(IF(($B$6:$B$300<>\"\")*(COUNTIF($C$5:C18,$B$6:$B$300)=0),ROW($B$6:$B$300)-5),1))),\"\")","v":""}]
[null,{"$f":"IF(ПРОВЕРКА,IF(ISNA(MATCH(ЛИСТ.ИМЯ,$I$6:$I$13,0)),HYPERLINK(ЛИСТ.СПИСОК&\"'!A1\",ЛИСТ.ИМЯ),\"\"),\"\")","v":""},{"$f":"IFERROR(HYPERLINK(MID(ЛИСТ.СПИСОК,1,SEARCH(\"'\",ЛИСТ.СПИСОК)-1)&INDEX($B$6:$B$300,SMALL(IF(($B$6:$B$300<>\"\")*(COUNTIF($C$5:C19,$B$6:$B$300)=0),ROW($B$6:$B$300)-5),1))&\"!A1\",INDEX($B$6:$B$300,SMALL(IF(($B$6:$B$300<>\"\")*(COUNTIF($C$5:C19,$B$6:$B$300)=0),ROW($B$6:$B$300)-5),1))),\"\")","v":""}]
[null,{"$f":"IF(ПРОВЕРКА,IF(ISNA(MATCH(ЛИСТ.ИМЯ,$I$6:$I$13,0)),HYPERLINK(ЛИСТ.СПИСОК&\"'!A1\",ЛИСТ.ИМЯ),\"\"),\"\")","v":""},{"$f":"IFERROR(HYPERLINK(MID(ЛИСТ.СПИСОК,1,SEARCH(\"'\",ЛИСТ.СПИСОК)-1)&INDEX($B$6:$B$300,SMALL(IF(($B$6:$B$300<>\"\")*(COUNTIF($C$5:C20,$B$6:$B$300)=0),ROW($B$6:$B$300)-5),1))&\"!A1\",INDEX($B$6:$B$300,SMALL(IF(($B$6:$B$300<>\"\")*(COUNTIF($C$5:C20,$B$6:$B$300)=0),ROW($B$6:$B$300)-5),1))),\"\")","v":""}]
[null,{"$f":"IF(ПРОВЕРКА,IF(ISNA(MATCH(ЛИСТ.ИМЯ,$I$6:$I$13,0)),HYPERLINK(ЛИСТ.СПИСОК&\"'!A1\",ЛИСТ.ИМЯ),\"\"),\"\")","v":""},{"$f":"IFERROR(HYPERLINK(MID(ЛИСТ.СПИСОК,1,SEARCH(\"'\",ЛИСТ.СПИСОК)-1)&INDEX($B$6:$B$300,SMALL(IF(($B$6:$B$300<>\"\")*(COUNTIF($C$5:C21,$B$6:$B$300)=0),ROW($B$6:$B$300)-5),1))&\"!A1\",INDEX($B$6:$B$300,SMALL(IF(($B$6:$B$300<>\"\")*(COUNTIF($C$5:C21,$B$6:$B$300)=0),ROW($B$6:$B$300)-5),1))),\"\")","v":""}]

{"sheet":"Усл","index":2,"n_rows":57,"n_cols":3,"rows_kept":57,"cut":false,"hidden":false,"merged":[]}
[null,"Талые грунты"]
[null,"Почвенно-растительные отложения голоценового возраста, pd IV"]
[1,"Почвенно-растительный слой","pd IV"]
[null,"Техногенные отложения голоценового возраста, t IV"]
["20-1","Насыпной грунт-песок коричневый мелкий, средней плотности, влажный","t IV"]
[null,"Озерно-болотные отложения голоценового возраста, lb IV"]
["110-2","Торф темно-коричневый, сильноразложившийся, влажный, ниже УГВ - водонасыщенный.","lb IV"]
["130-2","Торф коричневый, слабо-, среднеразложившийся, влажный, ниже УГВ - водонасыщенный.","lb IV"]
[null,"Аллювиальные отложения позднеплейстоценового и голоценового возраста, aIII-IV"]
["340-3","Cуглинок желто-коричневый, мягкопластичный, легкий, песчанистый, минеральный, с включением гравия и гальки до 5%, ожелезненный, с прослоями песка.","aIII-IV"]
["5423-3","Песок желто-коричневый, мелкий, средней плотности, влажный, ниже УГВ - насыщенный водой, минеральный, с включением гравия и гальки до 5%, ожелезненный","aIII-IV"]
[null,"Озерно-аллювиальные отложения позднеплейстоценового возраста, laIII"]
["340а-4","Cуглинок коричневый, мягкопластичный, легкий, песчанистый, с примесью органического вещества, с включением гравия и гальки до 5%., ожелезненный","laIII"]
["5423а-4","Песок коричневато-серый, мелкий, средней плотности, влажный, ниже УГВ - \nнасыщенный водой, с примесью органических веществ, с включением гравия и гальки до 5%,с прослоями суглинка, ожелезненный","laIII"]
[null,"Морские, ледниково-морские отложения среднеплейстоценового возраста, m.gm II"]
["100-5","Торф коричневый, сильноразложившийся, влажный, ниже УГВ - водонасыщенный, погребенный","m,gmII "]
["5423-5","Песок серый, мелкий, средней плотности, влажный, ниже УГВ - насыщенный водой, минеральный, с включением гравия и гальки до 5%, с прослоями суглинка","m,gmII "]
["5523-5","Песок серый, пылеватый, средней плотности, влажный, ниже УГВ - насыщенный водой, минеральный, с включением гравия и гальки до 5%, с прослоями суглинка","m,gmII "]
[]
[null,"Мерзлые грунты"]
["Лед","Лед"]
[null,"Озерно-болотные отложения голоценового возраста, lb IV"]
["110м-2","Торф темнокоричневый, сильноразложившийся, пластичномерзлый, сильнольдистый (льдистость от 0.40 д.е. до 0.60 д.е.). Криотекстура атакситовая.","lb IV"]
["130м-2","Торф темнокоричневый, слабо-, среднеразложившийся, пластичномерзлый, сильнольдистый (льдистость от 0.40 д.е. до 0.60 д.е.). Криотекстура атакситовая.","lb IV"]
[null,"Аллювиальные отложения позднеплейстоценового и голоценового возраста, aIII-IV"]
["5401м-3","Песок коричневый, мелкий, твердомерзлый, слабольдистый (льдистость до 0.40 д.е.), минеральный, незасоленный, с включением гравия и гальки до 5%, ожелезненный.  Криотекстура массивная.","aIII-IV"]
[null,"Озерно-аллювиальные отложения позднеплейстоценового, laIII"]
["5401ам-4","Песок коричневый, мелкий, твердомерзлый, слабольдистый (льдистость до 0.40 д.е.), с примесью органических веществ, незасоленный, с включением гравия и гальки до 5%, с прослоями суглинка, ожелезненный. Криотекстура массивная.","laIII"]
["5402ам-4","Песок коричневый, мелкий, твердомерзлый, льдистый (льдистость от 0.40 д.е. до 0.60 д.е.), с примесью органических веществ, незасоленный, с включением гравия и гальки до 5%, с прослоями суглинка, ожелезненный. Криотекстура массивная.","laIII"]
["5501ам-4","Песок коричневый, пылеватый, твердомерзлый, слабольдистый (льдистость до 0.40 д.е.), с примесью органических веществ,незасоленный, с включением гравия и гальки до 5%, с прослоями суглинка, ожелезненный.  Криотекстура массивная.","laIII"]
["5503м-4","Песок коричневый, пылеватый, твердомерзлый, льдистый (льдистость от 0,40 до 0.60 д.е.), с примесью органических веществ, незасоленный,  с включением гравия и гальки до 5%. с прослоями суглинка, ожелезненный. Криотекстура массивная.","laIII"]
["320ам-4","Cуглинок коричневый, твердомерзлый, слабольдистый (льдистость от 0.03 д.е. до 0.20 д.е.), легкий, песчанистый, с примесью органического вещества,  незасоленный,  включением гравия и гальки до 5%, ожелезненный. Криотекстура редко-, среднеослоистая, тонкошлировая (шлиры 1-10 мм через 10-200 мм).","laIII"]
["340ам-4","Cуглинок серовато-коричневый, твердомерзлый, льдистый (льдистость от 0.20 д.е. до 0.40 д.е.), легкий, песчанистый, с примесью органических веществ,с включением гравия и гальки до 5%,. ожелезненный. Криотекстура среднесетчатая, тонко- среднешлировая (шлиры 1-20 мм через 10-100 мм).","laIII"]
["350ам-4","Cуглинок серовато-коричневый, твердомерзлый, льдистый (льдистость от 0.20 д.е. до 0.40 д.е.), легкий, песчанистый, с примесью органических веществ, с включением гравия и гальки до 5%, ожелезненный.  Криотекстура среднесетчатая, тонко- среднешлировая (шлиры 1-20 мм через 10-50 мм).","laIII"]
["410ам-4","Cупесь серовато-коричневая, твердомерзлая, слабольдистая (льдистость от 0.03 д.е. до 0.20 д.е.), песчанистая, с примесью органических веществ, незасоленная, с включением гравия и гальки до 5%, ожелезненная.  Криотекстура массивная, крупно-, среднесетчатая, тонкошлировая (шлиры 1-20 мм через 10-100 мм).","laIII"]
["430ам-4","Cупесь серовато-коричневая, твердомерзлая, сильнольдистая (льдистость от 0.40 д.е. до 0.60 д.е.), песчанистая, с примесью органических веществ, незасоленная, с включением гравия и гальки до 5%, ожелезненная.  Криотекстура средне-, мелкосетчатая, тонко- среднешлировая (шлиры 1-20 мм через ","laIII"]
["240ам-4","Глина серая, твердомерзлая, льдистая (льдистость от 0.20 д.е. до 0.40 д.е.), легкая, песчанистая, с примесью органических веществ, незасоленная,  с включением гравия и гальки до 5%, ожелезненная.  Криотекстура среднеслоистая, тонко- среднешлировая (шлиры 1-20 мм через 10-100 мм).","laIII"]
[null,"Морские, ледниково-морские отложения среднеплейстоценового возраста, m.gm II"]
["100м-5","Торф бурый, сильноразложившийся, пластичномерзлый, сильнольдистый (льдистость от 0.40 д.е. до 0.60 д.е.), погребенный. Криотекстура атакситовая.","m,gmII "]
["5401м-5","Песок серый, мелкий, твердомерзлый, слабольдистый (льдистость до 0.40 д.е.), минеральный, незасоленный, с включением гравия и гальки до 5%. Криотекстура массивная.","m,gmII "]
["5402м-5","Песок серый, мелкий, твердомерзлый, льдистый (льдистость от 0.40 д.е. до 0.60 д.е.), с включением гравия и гальки до 5%.  Криотекстура массивная.","m,gmII "]
["5402ам-5","Песок серый, мелкий, твердомерзлый, слабольдистый (льдистость до 0.40 д.е.), с примесью органических веществ, незасоленный,  с включением гравия и гальки до 5%.  Криотекстура массивная.","m,gmII "]
["5411п-5","Песок серый, мелкий, пластичномерзлый, слабольдистый (льдистость до 0.40 д.е.), минеральный, слабозасоленный,  с включением гравия и гальки до 5%.  Криотекстура массивная.","m,gmII "]
["5501м-5","Песок серый, пылеватый, твердомерзлый, слабольдистый (льдистость до 0.40 д.е.), минеральный, незасоленный, с включением гравия и гальки до 5%.  Криотекстура массивная.","m,gmII "]
["5301м-5","Песок серый, средней крупности, твердомерзлый, слабольдистый (льдистость до 0.40 д.е.), минеральный, незасоленный, с включением гравия и гальки до 5%.  Криотекстура массивная.","m,gmII "]
["310м-5","Cуглинок темно-серый, твердомерзлый, нельдистый (льдистость менее 0.03 д.е.), легкий, песчанистый, минеральный, незасоленный, с включением гравия и гальки до 5%.  Криотекстура редко-, среднеослоистая, тонкошлировая (шлиры 1-10 мм через 10-200 мм).","m,gmII "]
["310ам-5","Cуглинок темно-серый, твердомерзлый, нельдистый (льдистость менее 0.03 д.е.), легкий, песчанистый,с примесью органического вещества, с включением гравия и гальки до 5%.  Криотекстура редко-, среднеослоистая, тонкошлировая (шлиры 1-10 мм через 10-200 мм).","m,gmII "]
["311ап-5","Cуглинок темно-серый, пластичномерзлый, нельдистый (льдистость менее 0.03 д.е.), легкий, песчанистый, с примесью органического вещества, слабозасоленный, с включением гравия и гальки до 5%.  Криотекстура редко-, среднеослоистая, тонкошлировая (шлиры 1-10 мм через 10-200 мм).","m,gmII "]
["320м-5","Cуглинок темно-серый, твердомерзлый, слабольдистый (льдистость от 0.03 д.е. до 0.20 д.е.), легкий, песчанистый, минеральный, незасоленный,  с включением гравия и гальки до 5%.  Криотекстура редко-, среднеослоистая, тонкошлировая (шлиры 1-10 мм через 10-200 мм).","m,gmII "]
["320п-5","Cуглинок темно-серый, пластичномерзлый, слабольдистый (льдистость от 0.03 д.е. до 0.20 д.е.), легкий, песчанистый, минеральный, незасоленный, с включением гравия и гальки до 5%.  Криотекстура редко-, среднеослоистая, тонкошлировая (шлиры 1-10 мм через 10-200 мм).","m,gmII "]
["320ам-5","Cуглинок темно-серый, твердомерзлый, слабольдистый (льдистость от 0.03 д.е. до 0.20 д.е.), легкий, песчанистый, с примесью органических веществ, незасоленный, с включением гравия и гальки до 5%.  Криотекстура редко-, среднеослоистая, тонкошлировая (шлиры 1-10 мм через 10-200 мм).","m,gmII "]
["340м-5","Cуглинок серый, твердомерзлый, льдистый (льдистость от 0.20 д.е. до 0.40 д.е.), легкий, песчанистый, минеральный, незасоленный, с включением гравия и гальки до 5%.  Криотекстура среднесетчатая, тонко- среднешлировая (шлиры 1-20 мм через 10-100 мм).","m,gmII "]
["340ам-5","Cуглинок темно-серый твердомерзлый, льдистый (льдистость от 0.20 д.е. до 0.40 д.е.), легкий, песчанистый, с примесью органических веществ, незасоленный,  с включением гравия и гальки до 5%.  Криотекстура среднесетчатая, тонко- среднешлировая (шлиры 1-20 мм через 10-100 мм).","m,gmII "]
["350м-5","Cуглинок серый, твердомерзлый, сильнольдистый (льдистость от 0.40 д.е. до 0.60 д.е.), легкий, песчанистый, минеральный, незасоленный, с включением гравия и гальки до 5%.  Криотекстура средне-, мелкосетчатая, тонко-, среднешлировая (шлиры 1-20 мм через 1-50 мм).","m,gmII "]
["410м-5","Cупесь серая, твердомерзлая, слабольдистая (льдистость от 0.03 д.е. до 0.20 д.е.), песчанистая,минеральная, незасоленная,  с включением гравия и гальки до 5%.  Криотекстура массивная, крупно-, среднесетчатая, тонкошлировая (шлиры 1-20 мм через 10-100 мм).","m,gmII "]
["420ам-5","Cупесь серая, твердомерзлая, льдистая (льдистость от 0.20 д.е. до 0.40 д.е.), песчанистая, с примесью органических веществ, незасоленная,  с включением гравия и гальки до 5%.  Криотекстура массивная, крупно-, среднесетчатая, тонкошлировая (шлиры 1-20 мм через 10-100 мм).","m,gmII "]
["240ам-5","Глина серая, твердомерзлая, сильнольдистая (льдистость от 0.40 д.е. до 0.60 д.е.), легкая, песчанистая, минеральная, незасоленная, с включением гравия и гальки до 5%.  Криотекстура среднеслоистая, тонко- среднешлировая (шлиры 1-20 мм через 1-50 мм).","m,gmII "]

{"sheet":"Кат","index":3,"n_rows":289,"n_cols":2,"rows_kept":289,"cut":false,"hidden":false,"merged":[]}
["№ скв","Абс,высота"]
["1/8",38.79]
["2/8",38.93]
["3/8",39.18]
["4/8",39.4]
["5/8",39.28]
["6/8",38.67]
["7/8",38.83]
["8/8",39.29]
["9/8",39.33]
["10/8",39.19]
["11/8",39.450000000000003]
["12/8",39.69]
["13/8",38.68]
["14/8",39.17]
["15/8",39.130000000000003]
["16/8",38.56]
["17/8",39.24]
["18/8",38.72]
["19/8",39.200000000000003]
["20/8",39.369999999999997]
["21/8",39.31]
["22/8",40]
["23/8",39.590000000000003]
["24/8",38.69]
["25/8",38.67]
["26/8",39.950000000000003]
["27/8",40.6]
["28/8",40.44]
["29/8",40.869999999999997]
["30/8",41.34]
["31/8",41.55]
["32/8",41.55]
["33/8",41.4]
["1/9",37.36]
["2/9",37.07]
["3/9",37.619999999999997]
["4/9",37.270000000000003]
["5/9",37.56]
["6/9",37.57]
["7/9",38.04]
["8/9",37.909999999999997]
["9/9",37.96]
["10/9",38.44]
["11/9",38.369999999999997]
["12/9",38.99]
["13/9",38.93]
["14/9","38.64"]
["15/9",38.590000000000003]
["16/9",39.17]
["17/9",39.26]
["18/9",38.96]
["19/9",38.83]
["20/9",38.83]
["21/9",38.85]
["22/9",38.979999999999997]
["23/9",39.020000000000003]
["24/9",39]
["1/10",36.86]
["2/10",37.33]
["3/10",37.36]
["4/10",37.119999999999997]
["5/10","37.36"]
["6/10",37.79]
["7/10",37.619999999999997]
["8/10",37.630000000000003]
["9/10",38.19]
["10/10",37.94]
["11/10",37.590000000000003]
["12/10",38.520000000000003]
["13/10",38.03]
["14/10",37.340000000000003]
["15/10",37.04]
["16/10",38.21]
["17/10",37.950000000000003]
["18/10",38.46]
["19/10",37.75]
["20/10",38.07]
["21/10",38.090000000000003]
["1/11",39.58]
["2/11",39.799999999999997]
["3/11",39.31]
["4/11",39.96]
["5/11",37.78]
["6/11",38.590000000000003]
["7/11",38.549999999999997]
["8/11",39.299999999999997]
["9/11",39.64]
["10/11",37.909999999999997]
["11/11",38.14]
["12/11",38.56]
["13/11",38.700000000000003]
["14/11",39.33]
["15/11",39.799999999999997]
["16/11",38.04]
["17/11",38.86]
["18/11",39.21]
["19/11",39.1]
["20/11",39.49]
["21/11",40.020000000000003]
["22/11",39.380000000000003]
["1/15",37.6]
["2/15",37.54]
["3/15",37.6]
["4/15",38.200000000000003]
["5/15",37.700000000000003]
["6/15",37.35]
["7/15",37.799999999999997]
["8/15",38.01]
["9/15",37.380000000000003]
["10/15",37.770000000000003]
["11/15",37.68]
["12/15",37.68]
["13/15",37.71]
["14/15",37.520000000000003]
["15/15",37.54]
["16/15",37.619999999999997]
["17/15",37.28]
["18/15",36.83]
["19/15",36.549999999999997]
["20/15",36.68]
["21/15",36.619999999999997]
["22/15",36.1]
["23/15",36.299999999999997]
["1/20",36]
["2/20",36.340000000000003]
["3/20",36.69]
["4/20",35.28]
["5/20",36.72]
["6/20",36.86]
["7/20",36.56]
["8/20",37.020000000000003]
["9/20",36.78]
["10/20",36.950000000000003]
["11/20",36.89]
["12/20",37.299999999999997]
["13/20",37.22]
["14/20",37.06]
["15/20",37.159999999999997]
["16/20",37.6]
["17/20",37.42]
["18/20",37.11]
["19/20",36.39]
["20/20",37.36]
["21/20",37.340000000000003]
["22/20",36.92]
["23/20",35.9]
["24/20",36.590000000000003]
["25/20",36.11]
["1/21",32.78]
["2/21",33.79]
["3/21",31.89]
["4/21",33.49]
["5/21",34.08]
["6/21",33.049999999999997]
["7/21",32.28]
["8/21",31.23]
["9/21",31.61]
["10/21",32.880000000000003]
["11/21",30.77]
["12/21",31.5]
["13/21",31.3]
["14/21",30.69]
["15/21",30.93]
["16/21",31.38]
["17/21",32.67]
["18/21",27.15]
["19/21",27.91]
["20/21",28.29]
["21/21",29.74]
["22/21",30.44]
["23/21",31.4]
["24/21",32.18]
["25/21",27.04]
["26/21",29.01]
["27/21",30.29]
["28/21",31.73]
["29/21",34.26]
["30/21",33.020000000000003]
["1/22",39.96]
["2/22",39.549999999999997]
["3/22",39.369999999999997]
["4/22",39.229999999999997]
["5/22",38.78]
["6/22",40.11]
["7/22",40.22]
["8/22",39.97]
["9/22",39.729999999999997]
["10/22",39.450000000000003]
["11/22",38.97]
["12/22",38.799999999999997]
["13/22",38.32]
["14/22",40.26]
["15/22",40.299999999999997]
["16/22",39.78]
["17/22",39.64]
["18/22",38.83]
["19/22",38.979999999999997]
["20/22",38.4]
["21/22",38.18]
["22/22",39.659999999999997]
["23/22",39.68]
["24/22",38.9]
["25/22",38.700000000000003]
["1/24",38.11]
["2/24",38.03]
["3/24",37.130000000000003]
["4/24",37.270000000000003]
["5/24",38.340000000000003]
["6/24",38.299999999999997]
["7/24",37.36]
["8/24",38.19]
["9/24",38.630000000000003]
["10/24",36.96]
["11/24",37.03]
["12/24",36.86]
["13/24",36.81]
["14/24",36.5]
["15/24",36.64]
["16/24",37.729999999999997]
["17/24",37.69]
["18/24",36.520000000000003]
["19/24",36.03]
["20/24",36.590000000000003]
["21/24",36.380000000000003]
["22/24",37.130000000000003]
["23/24",37.24]
["24/24",36.450000000000003]
["25/24",35.76]
["26/24",36]
["27/24",31.47]
["28/24",34.950000000000003]
["1/35",38.159999999999997]
["2/35",38.36]
["3/35",38.93]
["4/35",38.49]
["5/35",38.07]
["7/35",37.880000000000003]
["8/35",38.1]
["9/35",38.28]
["10/35",38.39]
["11/35",38.299999999999997]
["12/35",37.9]
["13/35",38.119999999999997]
["14/35",37.93]
["15/35",38.049999999999997]
["16/35",37.83]
["17/35",38.17]
["18/35",38.25]
["19/35",38.340000000000003]
["20/35",38.22]
["21/35",37.799999999999997]
["22/35",37.880000000000003]
["23/35",37.86]
["24/35",38.33]
["25/35",38]
["26/35",38.1]
["27/35",38.4]
["28/35",37.69]
["29/35",37.74]
["31/35",37.979999999999997]
["32/35",37.96]
["1/97",35.26]
["2/97",35.21]
["3/97",35.26]
["4/97",35.049999999999997]
["5/97",35.17]
["6/97",35.47]
["7/97",34.76]
["8/97",35.14]
["9/97",35.26]
["10/97",36.5]
["11/97",36.630000000000003]
["12/97",36.89]
["13/97",34.770000000000003]
["14/97",35.020000000000003]
["15/97",35.9]
["16/97",37.200000000000003]
["17/97",37.869999999999997]
["18/97",35.020000000000003]
["19/97",35.33]
["20/97",36.49]
["21/97",38.06]
["22/97",38.61]
["23/97",34.729999999999997]
["24/97",35.39]
["25/97",37.130000000000003]
["26/97",35.36]
["27/97",36.4]

{"sheet":"скв1","index":4,"n_rows":15,"n_cols":12,"rows_kept":15,"cut":false,"hidden":false,"merged":[[0,4,0,5],[7,10,8,10],[7,11,8,11],[6,0,8,0],[6,1,8,1],[6,4,8,4],[6,5,8,5],[6,6,8,6],[7,2,8,2],[7,3,8,3],[6,8,7,9],[9,10,14,10],[9,11,14,11],[6,2,6,3],[6,10,6,11],[6,7,8,7]]}
[null,null,null,null,"Скважина",null,"№","1/10"]
["Расположение: куст 10                  "]
[]
["Дата начала бурения: 31.03.14"]
["Дата окончания бурения: 31.03.2014",null,null,null,null,null,null,"Абсолютная отметка",{"$f":"VLOOKUP(H1,Кат!A1:B677,2,FALSE)","v":36.86}]
[null,null,null,null,null,null,null,"Общая глубина",{"$f":"SUM($E$10:$E$15)","v":17},"м"]
["№ слоя","Геологический индекс","Глубина слоя,м",null,"Мощность слоя,м","Абс.отметка подошвы слоя,м","ИГЭ","Литологическое описание ","Глубина отбора образцов,м",null,"Грунтовые воды"]
[null,null,"от","до",null,null,null,null,null,null,"Уровень появления, м","Уровень установления, м"]
[null,null,null,null,null,null,null,null,"мон","нар"]
[1,{"$f":"VLOOKUP($G10,Усл!$A$1:$C$851,3,FALSE)","v":"lb IV"},"0",1.8,{"$f":"D10","v":1.8},{"$f":"I5-D10","v":35.06},"130м-2",{"$f":"VLOOKUP(G10,Усл!$A$1:$B$851,2,FALSE)","v":"Торф темнокоричневый, слабо-, среднеразложившийся, пластичномерзлый, сильнольдистый (льдистость от 0.40 д.е. до 0.60 д.е.). Криотекстура атакситовая."},null,null,"Подземные воды не встречены"]
[2,{"$f":"VLOOKUP($G11,Усл!$A$1:$C$851,3,FALSE)","v":"laIII"},{"$f":"D10","v":1.8},3.3,{"$f":"D11-D10","v":1.4999999999999998},{"$f":"F10-E11","v":33.56},"5401ам-4",{"$f":"VLOOKUP(G11,Усл!$A$1:$B$851,2,FALSE)","v":"Песок коричневый, мелкий, твердомерзлый, слабольдистый (льдистость до 0.40 д.е.), с примесью органических веществ, незасоленный, с включением гравия и гальки до 5%, с прослоями суглинка, ожелезненный. Криотекстура массивная."}]
[3,{"$f":"VLOOKUP($G12,Усл!$A$1:$C$851,3,FALSE)","v":"m,gmII "},{"$f":"D11","v":3.3},4.2,{"$f":"D12-D11","v":0.90000000000000036},{"$f":"F11-E12","v":32.660000000000004},"340м-5",{"$f":"VLOOKUP(G12,Усл!$A$1:$B$851,2,FALSE)","v":"Cуглинок серый, твердомерзлый, льдистый (льдистость от 0.20 д.е. до 0.40 д.е.), легкий, песчанистый, минеральный, незасоленный, с включением гравия и гальки до 5%.  Криотекстура среднесетчатая, тонко- среднешлировая (шлиры 1-20 мм через 10-100 мм)."}]
[4,{"$f":"VLOOKUP($G13,Усл!$A$1:$C$851,3,FALSE)","v":"m,gmII "},{"$f":"D12","v":4.2},6.4,{"$f":"D13-D12","v":2.2000000000000002},{"$f":"F12-E13","v":30.460000000000004},"5401м-5",{"$f":"VLOOKUP(G13,Усл!$A$1:$B$851,2,FALSE)","v":"Песок серый, мелкий, твердомерзлый, слабольдистый (льдистость до 0.40 д.е.), минеральный, незасоленный, с включением гравия и гальки до 5%. Криотекстура массивная."}]
[5,{"$f":"VLOOKUP($G14,Усл!$A$1:$C$851,3,FALSE)","v":"m,gmII "},{"$f":"D13","v":6.4},7.7,{"$f":"D14-D13","v":1.2999999999999998},{"$f":"F13-E14","v":29.160000000000004},"340м-5",{"$f":"VLOOKUP(G14,Усл!$A$1:$B$851,2,FALSE)","v":"Cуглинок серый, твердомерзлый, льдистый (льдистость от 0.20 д.е. до 0.40 д.е.), легкий, песчанистый, минеральный, незасоленный, с включением гравия и гальки до 5%.  Криотекстура среднесетчатая, тонко- среднешлировая (шлиры 1-20 мм через 10-100 мм)."}]
[6,{"$f":"VLOOKUP($G15,Усл!$A$1:$C$851,3,FALSE)","v":"m,gmII "},{"$f":"D14","v":7.7},17,{"$f":"D15-D14","v":9.3000000000000007},{"$f":"F14-E15","v":19.860000000000003},"320м-5",{"$f":"VLOOKUP(G15,Усл!$A$1:$B$851,2,FALSE)","v":"Cуглинок темно-серый, твердомерзлый, слабольдистый (льдистость от 0.03 д.е. до 0.20 д.е.), легкий, песчанистый, минеральный, незасоленный,  с включением гравия и гальки до 5%.  Криотекстура редко-, среднеослоистая, тонкошлировая (шлиры 1-10 мм через 10-200 мм)."}]

{"sheet":"скв2","index":5,"n_rows":13,"n_cols":12,"rows_kept":13,"cut":false,"hidden":false,"merged":[[0,4,0,5],[6,0,8,0],[6,1,8,1],[6,2,6,3],[6,4,8,4],[6,5,8,5],[7,2,8,2],[7,3,8,3],[9,10,12,10],[9,8,12,8],[9,9,12,9],[9,11,12,11],[6,6,8,6],[6,7,8,7],[6,8,7,9],[6,10,6,11],[7,10,8,10],[7,11,8,11]]}
[null,null,null,null,"Скважина",null,"№","2/10"]
["Расположение: куст 12                   "]
[]
["Дата начала бурения: 14.03.14"]
["Дата окончания бурения: 14.03.2014",null,null,null,null,null,null,"Абсолютная отметка",{"$f":"VLOOKUP(H1,Кат!A1:B677,2,FALSE)","v":37.33}]
[null,null,null,null,null,null,null,"Общая глубина",{"$f":"SUM($E$10:$E$13)","v":17},"м"]
["№ слоя","Геологический индекс","Глубина слоя,м",null,"Мощность слоя,м","Абс.отметка подошвы слоя,м","ИГЭ","Литологическое описание ","Глубина отбора образцов,м",null,"Грунтовые воды"]
[null,null,"от","до",null,null,null,null,null,null,"Уровень появления, м","Уровень установления, м"]
[null,null,null,null,null,null,null,null,"мон","нар"]
[1,{"$f":"VLOOKUP($G10,Усл!$A$1:$C$851,3,FALSE)","v":"lb IV"},"0",0.3,{"$f":"D10","v":0.3},{"$f":"I5-D10","v":37.03},"130м-2",{"$f":"VLOOKUP(G10,Усл!$A$1:$B$851,2,FALSE)","v":"Торф темнокоричневый, слабо-, среднеразложившийся, пластичномерзлый, сильнольдистый (льдистость от 0.40 д.е. до 0.60 д.е.). Криотекстура атакситовая."},null,null,"Подземные воды не встречены"]
[2,{"$f":"VLOOKUP($G11,Усл!$A$1:$C$851,3,FALSE)","v":"laIII"},{"$f":"D10","v":0.3},2.2000000000000002,{"$f":"D11-D10","v":1.9000000000000001},{"$f":"F10-E11","v":35.130000000000003},"5401ам-4",{"$f":"VLOOKUP(G11,Усл!$A$1:$B$851,2,FALSE)","v":"Песок коричневый, мелкий, твердомерзлый, слабольдистый (льдистость до 0.40 д.е.), с примесью органических веществ, незасоленный, с включением гравия и гальки до 5%, с прослоями суглинка, ожелезненный. Криотекстура массивная."}]
[3,{"$f":"VLOOKUP($G12,Усл!$A$1:$C$851,3,FALSE)","v":"m,gmII "},{"$f":"D11","v":2.2000000000000002},5.4,{"$f":"D12-D11","v":3.2},{"$f":"F11-E12","v":31.930000000000003},"340м-5",{"$f":"VLOOKUP(G12,Усл!$A$1:$B$851,2,FALSE)","v":"Cуглинок серый, твердомерзлый, льдистый (льдистость от 0.20 д.е. до 0.40 д.е.), легкий, песчанистый, минеральный, незасоленный, с включением гравия и гальки до 5%.  Криотекстура среднесетчатая, тонко- среднешлировая (шлиры 1-20 мм через 10-100 мм)."}]
[4,{"$f":"VLOOKUP($G13,Усл!$A$1:$C$851,3,FALSE)","v":"m,gmII "},{"$f":"D12","v":5.4},17,{"$f":"D13-D12","v":11.6},{"$f":"F12-E13","v":20.330000000000005},"320м-5",{"$f":"VLOOKUP(G13,Усл!$A$1:$B$851,2,FALSE)","v":"Cуглинок темно-серый, твердомерзлый, слабольдистый (льдистость от 0.03 д.е. до 0.20 д.е.), легкий, песчанистый, минеральный, незасоленный,  с включением гравия и гальки до 5%.  Криотекстура редко-, среднеослоистая, тонкошлировая (шлиры 1-10 мм через 10-200 мм)."}]

{"sheet":"скв3","index":6,"n_rows":14,"n_cols":12,"rows_kept":14,"cut":false,"hidden":false,"merged":[[0,4,0,5],[6,0,8,0],[6,1,8,1],[6,2,6,3],[6,4,8,4],[6,5,8,5],[7,2,8,2],[7,3,8,3],[9,10,13,10],[9,11,13,11],[9,8,13,8],[9,9,13,9],[6,6,8,6],[6,7,8,7],[6,8,7,9],[6,10,6,11],[7,10,8,10],[7,11,8,11]]}
[null,null,null,null,"Скважина",null,"№","3/10"]
["Расположение: куст 10                  "]
[]
["Дата начала бурения: 31.03.14"]
["Дата окончания бурения: 31.03.2014",null,null,null,null,null,null,"Абсолютная отметка",{"$f":"VLOOKUP(H1,Кат!A1:B677,2,FALSE)","v":37.36}]
[null,null,null,null,null,null,null,"Общая глубина",{"$f":"SUM($E$10:$E$14)","v":17},"м"]
["№ слоя","Геологический индекс","Глубина слоя,м",null,"Мощность слоя,м","Абс.отметка подошвы слоя,м","ИГЭ","Литологическое описание ","Глубина отбора образцов,м",null,"Грунтовые воды"]
[null,null,"от","до",null,null,null,null,null,null,"Уровень появления, м","Уровень установления, м"]
[null,null,null,null,null,null,null,null,"мон","нар"]
[1,{"$f":"VLOOKUP($G10,Усл!$A$1:$C$851,3,FALSE)","v":"lb IV"},"0",0.5,{"$f":"D10","v":0.5},{"$f":"I5-D10","v":36.86},"130м-2",{"$f":"VLOOKUP(G10,Усл!$A$1:$B$851,2,FALSE)","v":"Торф темнокоричневый, слабо-, среднеразложившийся, пластичномерзлый, сильнольдистый (льдистость от 0.40 д.е. до 0.60 д.е.). Криотекстура атакситовая."},null,null,"Подземные воды не встречены"]
[2,{"$f":"VLOOKUP($G11,Усл!$A$1:$C$851,3,FALSE)","v":"laIII"},{"$f":"D10","v":0.5},1.3,{"$f":"D11-D10","v":0.8},{"$f":"F10-E11","v":36.06},"5401ам-4",{"$f":"VLOOKUP(G11,Усл!$A$1:$B$851,2,FALSE)","v":"Песок коричневый, мелкий, твердомерзлый, слабольдистый (льдистость до 0.40 д.е.), с примесью органических веществ, незасоленный, с включением гравия и гальки до 5%, с прослоями суглинка, ожелезненный. Криотекстура массивная."}]
[3,{"$f":"VLOOKUP($G12,Усл!$A$1:$C$851,3,FALSE)","v":"m,gmII "},{"$f":"D11","v":1.3},2.5,{"$f":"D12-D11","v":1.2},{"$f":"F11-E12","v":34.86},"320м-5",{"$f":"VLOOKUP(G12,Усл!$A$1:$B$851,2,FALSE)","v":"Cуглинок темно-серый, твердомерзлый, слабольдистый (льдистость от 0.03 д.е. до 0.20 д.е.), легкий, песчанистый, минеральный, незасоленный,  с включением гравия и гальки до 5%.  Криотекстура редко-, среднеослоистая, тонкошлировая (шлиры 1-10 мм через 10-200 мм)."}]
[4,{"$f":"VLOOKUP($G13,Усл!$A$1:$C$851,3,FALSE)","v":"m,gmII "},{"$f":"D12","v":2.5},7.2,{"$f":"D13-D12","v":4.7},{"$f":"F12-E13","v":30.16},"340м-5",{"$f":"VLOOKUP(G13,Усл!$A$1:$B$851,2,FALSE)","v":"Cуглинок серый, твердомерзлый, льдистый (льдистость от 0.20 д.е. до 0.40 д.е.), легкий, песчанистый, минеральный, незасоленный, с включением гравия и гальки до 5%.  Криотекстура среднесетчатая, тонко- среднешлировая (шлиры 1-20 мм через 10-100 мм)."}]
[5,{"$f":"VLOOKUP($G14,Усл!$A$1:$C$851,3,FALSE)","v":"m,gmII "},{"$f":"D13","v":7.2},17,{"$f":"D14-D13","v":9.8000000000000007},{"$f":"F13-E14","v":20.36},"320м-5",{"$f":"VLOOKUP(G14,Усл!$A$1:$B$851,2,FALSE)","v":"Cуглинок темно-серый, твердомерзлый, слабольдистый (льдистость от 0.03 д.е. до 0.20 д.е.), легкий, песчанистый, минеральный, незасоленный,  с включением гравия и гальки до 5%.  Криотекстура редко-, среднеослоистая, тонкошлировая (шлиры 1-10 мм через 10-200 мм)."}]

{"sheet":"скв4","index":7,"n_rows":15,"n_cols":12,"rows_kept":15,"cut":false,"hidden":false,"merged":[[0,4,0,5],[6,0,8,0],[6,1,8,1],[6,2,6,3],[6,4,8,4],[6,5,8,5],[7,2,8,2],[7,3,8,3],[9,10,14,10],[9,11,14,11],[9,8,14,8],[9,9,14,9],[6,6,8,6],[6,7,8,7],[6,8,7,9],[6,10,6,11],[7,10,8,10],[7,11,8,11]]}
[null,null,null,null,"Скважина",null,"№","4/10"]
["Расположение: куст 10                  "]
[]
["Дата начала бурения: 31.03.14"]
["Дата окончания бурения: 31.03.2014",null,null,null,null,null,null,"Абсолютная отметка",{"$f":"VLOOKUP(H1,Кат!A1:B677,2,FALSE)","v":37.119999999999997}]
[null,null,null,null,null,null,null,"Общая глубина",{"$f":"SUM($E$10:$E$14)","v":6.6},"м"]
["№ слоя","Геологический индекс","Глубина слоя,м",null,"Мощность слоя,м","Абс.отметка подошвы слоя,м","ИГЭ","Литологическое описание ","Глубина отбора образцов,м",null,"Грунтовые воды"]
[null,null,"от","до",null,null,null,null,null,null,"Уровень появления, м","Уровень установления, м"]
[null,null,null,null,null,null,null,null,"мон","нар"]
[1,{"$f":"VLOOKUP($G10,Усл!$A$1:$C$851,3,FALSE)","v":"lb IV"},"0",1.6,{"$f":"D10","v":1.6},{"$f":"I5-D10","v":35.519999999999996},"130м-2",{"$f":"VLOOKUP(G10,Усл!$A$1:$B$851,2,FALSE)","v":"Торф темнокоричневый, слабо-, среднеразложившийся, пластичномерзлый, сильнольдистый (льдистость от 0.40 д.е. до 0.60 д.е.). Криотекстура атакситовая."},null,null,"Подземные воды не встречены"]
[2,{"$f":"VLOOKUP($G11,Усл!$A$1:$C$851,3,FALSE)","v":"laIII"},{"$f":"D10","v":1.6},2.8,{"$f":"D11-D10","v":1.1999999999999997},{"$f":"F10-E11","v":34.319999999999993},"5401ам-4",{"$f":"VLOOKUP(G11,Усл!$A$1:$B$851,2,FALSE)","v":"Песок коричневый, мелкий, твердомерзлый, слабольдистый (льдистость до 0.40 д.е.), с примесью органических веществ, незасоленный, с включением гравия и гальки до 5%, с прослоями суглинка, ожелезненный. Криотекстура массивная."}]
[3,{"$f":"VLOOKUP($G12,Усл!$A$1:$C$851,3,FALSE)","v":"m,gmII "},{"$f":"D11","v":2.8},3.6,{"$f":"D12-D11","v":0.80000000000000027},{"$f":"F11-E12","v":33.519999999999996},"350м-5",{"$f":"VLOOKUP(G12,Усл!$A$1:$B$851,2,FALSE)","v":"Cуглинок серый, твердомерзлый, сильнольдистый (льдистость от 0.40 д.е. до 0.60 д.е.), легкий, песчанистый, минеральный, незасоленный, с включением гравия и гальки до 5%.  Криотекстура средне-, мелкосетчатая, тонко-, среднешлировая (шлиры 1-20 мм через 1-50 мм)."}]
[4,{"$f":"VLOOKUP($G13,Усл!$A$1:$C$851,3,FALSE)","v":"m,gmII "},{"$f":"D12","v":3.6},5.4,{"$f":"D13-D12","v":1.8000000000000003},{"$f":"F12-E13","v":31.719999999999995},"5401м-5",{"$f":"VLOOKUP(G13,Усл!$A$1:$B$851,2,FALSE)","v":"Песок серый, мелкий, твердомерзлый, слабольдистый (льдистость до 0.40 д.е.), минеральный, незасоленный, с включением гравия и гальки до 5%. Криотекстура массивная."}]
[5,{"$f":"VLOOKUP($G14,Усл!$A$1:$C$851,3,FALSE)","v":"m,gmII "},{"$f":"D13","v":5.4},6.6,{"$f":"D14-D13","v":1.1999999999999993},{"$f":"F13-E14","v":30.519999999999996},"340м-5",{"$f":"VLOOKUP(G14,Усл!$A$1:$B$851,2,FALSE)","v":"Cуглинок серый, твердомерзлый, льдистый (льдистость от 0.20 д.е. до 0.40 д.е.), легкий, песчанистый, минеральный, незасоленный, с включением гравия и гальки до 5%.  Криотекстура среднесетчатая, тонко- среднешлировая (шлиры 1-20 мм через 10-100 мм)."}]
[6,{"$f":"VLOOKUP($G15,Усл!$A$1:$C$851,3,FALSE)","v":"m,gmII "},{"$f":"D14","v":6.6},17,{"$f":"D15-D14","v":10.4},{"$f":"F14-E15","v":20.119999999999997},"320м-5",{"$f":"VLOOKUP(G15,Усл!$A$1:$B$851,2,FALSE)","v":"Cуглинок темно-серый, твердомерзлый, слабольдистый (льдистость от 0.03 д.е. до 0.20 д.е.), легкий, песчанистый, минеральный, незасоленный,  с включением гравия и гальки до 5%.  Криотекстура редко-, среднеослоистая, тонкошлировая (шлиры 1-10 мм через 10-200 мм)."}]

{"sheet":"скв5","index":8,"n_rows":15,"n_cols":12,"rows_kept":15,"cut":false,"hidden":false,"merged":[[0,4,0,5],[6,0,8,0],[6,1,8,1],[6,2,6,3],[6,4,8,4],[6,5,8,5],[7,2,8,2],[7,3,8,3],[9,8,14,8],[9,9,14,9],[9,10,14,10],[9,11,14,11],[6,6,8,6],[6,7,8,7],[6,8,7,9],[6,10,6,11],[7,10,8,10],[7,11,8,11]]}
[null,null,null,null,"Скважина",null,"№","5/10"]
["Расположение: куст 10                  "]
[]
["Дата начала бурения: 31.03.14"]
["Дата окончания бурения: 31.03.2014",null,null,null,null,null,null,"Абсолютная отметка",{"$f":"VLOOKUP(H1,Кат!A1:B677,2,FALSE)","v":"37.36"}]
[null,null,null,null,null,null,null,"Общая глубина",{"$f":"SUM($E$10:$E$14)","v":6.1},"м"]
["№ слоя","Геологический индекс","Глубина слоя,м",null,"Мощность слоя,м","Абс.отметка подошвы слоя,м","ИГЭ","Литологическое описание ","Глубина отбора образцов,м",null,"Грунтовые воды"]
[null,null,"от","до",null,null,null,null,null,null,"Уровень появления, м","Уровень установления, м"]
[null,null,null,null,null,null,null,null,"мон","нар"]
[1,{"$f":"VLOOKUP($G10,Усл!$A$1:$C$851,3,FALSE)","v":"lb IV"},"0",0.5,{"$f":"D10","v":0.5},{"$f":"I5-E10","v":{"$error":"#VALUE!"}},"130м-2",{"$f":"VLOOKUP(G10,Усл!$A$1:$B$851,2,FALSE)","v":"Торф темнокоричневый, слабо-, среднеразложившийся, пластичномерзлый, сильнольдистый (льдистость от 0.40 д.е. до 0.60 д.е.). Криотекстура атакситовая."},null,null,"Подземные воды не встречены"]
[2,{"$f":"VLOOKUP($G11,Усл!$A$1:$C$851,3,FALSE)","v":"laIII"},{"$f":"D10","v":0.5},1.9,{"$f":"D11-D10","v":1.4},{"$f":"F10-E11","v":{"$error":"#VALUE!"}},"5401ам-4",{"$f":"VLOOKUP(G11,Усл!$A$1:$B$851,2,FALSE)","v":"Песок коричневый, мелкий, твердомерзлый, слабольдистый (льдистость до 0.40 д.е.), с примесью органических веществ, незасоленный, с включением гравия и гальки до 5%, с прослоями суглинка, ожелезненный. Криотекстура массивная."}]
[3,{"$f":"VLOOKUP($G12,Усл!$A$1:$C$851,3,FALSE)","v":"m,gmII "},{"$f":"D11","v":1.9},2.5,{"$f":"D12-D11","v":0.60000000000000009},{"$f":"F11-E12","v":{"$error":"#VALUE!"}},"340м-5",{"$f":"VLOOKUP(G12,Усл!$A$1:$B$851,2,FALSE)","v":"Cуглинок серый, твердомерзлый, льдистый (льдистость от 0.20 д.е. до 0.40 д.е.), легкий, песчанистый, минеральный, незасоленный, с включением гравия и гальки до 5%.  Криотекстура среднесетчатая, тонко- среднешлировая (шлиры 1-20 мм через 10-100 мм)."}]
[4,{"$f":"VLOOKUP($G13,Усл!$A$1:$C$851,3,FALSE)","v":"m,gmII "},{"$f":"D12","v":2.5},4.9000000000000004,{"$f":"D13-D12","v":2.4000000000000004},{"$f":"F12-E13","v":{"$error":"#VALUE!"}},"5401м-5",{"$f":"VLOOKUP(G13,Усл!$A$1:$B$851,2,FALSE)","v":"Песок серый, мелкий, твердомерзлый, слабольдистый (льдистость до 0.40 д.е.), минеральный, незасоленный, с включением гравия и гальки до 5%. Криотекстура массивная."}]
[5,{"$f":"VLOOKUP($G14,Усл!$A$1:$C$851,3,FALSE)","v":"m,gmII "},{"$f":"D13","v":4.9000000000000004},6.1,{"$f":"D14-D13","v":1.1999999999999993},{"$f":"F13-E14","v":{"$error":"#VALUE!"}},"340м-5",{"$f":"VLOOKUP(G14,Усл!$A$1:$B$851,2,FALSE)","v":"Cуглинок серый, твердомерзлый, льдистый (льдистость от 0.20 д.е. до 0.40 д.е.), легкий, песчанистый, минеральный, незасоленный, с включением гравия и гальки до 5%.  Криотекстура среднесетчатая, тонко- среднешлировая (шлиры 1-20 мм через 10-100 мм)."}]
[6,{"$f":"VLOOKUP($G15,Усл!$A$1:$C$851,3,FALSE)","v":"m,gmII "},{"$f":"D14","v":6.1},17,{"$f":"D15-D14","v":10.9},{"$f":"F14-E15","v":{"$error":"#VALUE!"}},"320м-5",{"$f":"VLOOKUP(G15,Усл!$A$1:$B$851,2,FALSE)","v":"Cуглинок темно-серый, твердомерзлый, слабольдистый (льдистость от 0.03 д.е. до 0.20 д.е.), легкий, песчанистый, минеральный, незасоленный,  с включением гравия и гальки до 5%.  Криотекстура редко-, среднеослоистая, тонкошлировая (шлиры 1-10 мм через 10-200 мм)."}]

{"sheet":"1","index":9,"n_rows":14,"n_cols":12,"rows_kept":14,"cut":false,"hidden":false,"merged":[[0,4,0,5],[6,0,8,0],[6,1,8,1],[6,2,6,3],[6,4,8,4],[6,5,8,5],[7,2,8,2],[7,3,8,3],[9,8,13,8],[9,9,13,9],[9,10,13,10],[9,11,13,11],[6,6,8,6],[6,7,8,7],[6,8,7,9],[6,10,6,11],[7,10,8,10],[7,11,8,11]]}
[null,null,null,null,"Скважина",null,"№","6/10"]
["Расположение: куст 10                  "]
[]
["Дата начала бурения: 22.03.14"]
["Дата окончания бурения: 22.03.2014",null,null,null,null,null,null,"Абсолютная отметка",{"$f":"VLOOKUP(H1,Кат!A1:B677,2,FALSE)","v":37.79}]
[null,null,null,null,null,null,null,"Общая глубина",{"$f":"SUM($E$10:$E$14)","v":17},"м"]
["№ слоя","Геологический индекс","Глубина слоя,м",null,"Мощность слоя,м","Абс.отметка подошвы слоя,м","ИГЭ","Литологическое описание ","Глубина отбора образцов,м",null,"Грунтовые воды"]
[null,null,"от","до",null,null,null,null,null,null,"Уровень появления, м","Уровень установления, м"]
[null,null,null,null,null,null,null,null,"мон","нар"]
[1,{"$f":"VLOOKUP($G10,Усл!$A$1:$C$851,3,FALSE)","v":"lb IV"},"0",0.6,{"$f":"D10","v":0.6},{"$f":"F9-E10","v":-0.6},"110м-2",{"$f":"VLOOKUP(G10,Усл!$A$1:$B$851,2,FALSE)","v":"Торф темнокоричневый, сильноразложившийся, пластичномерзлый, сильнольдистый (льдистость от 0.40 д.е. до 0.60 д.е.). Криотекстура атакситовая."},null,null,"Подземные воды не встречены"]
[2,{"$f":"VLOOKUP($G11,Усл!$A$1:$C$851,3,FALSE)","v":"laIII"},{"$f":"D10","v":0.6},2.8,{"$f":"D11-D10","v":2.1999999999999997},{"$f":"F10-E11","v":-2.8},"5401ам-4",{"$f":"VLOOKUP(G11,Усл!$A$1:$B$851,2,FALSE)","v":"Песок коричневый, мелкий, твердомерзлый, слабольдистый (льдистость до 0.40 д.е.), с примесью органических веществ, незасоленный, с включением гравия и гальки до 5%, с прослоями суглинка, ожелезненный. Криотекстура массивная."}]
[3,{"$f":"VLOOKUP($G12,Усл!$A$1:$C$851,3,FALSE)","v":"m,gmII "},{"$f":"D11","v":2.8},6.5,{"$f":"D12-D11","v":3.7},{"$f":"F11-E12","v":-6.5},"350м-5",{"$f":"VLOOKUP(G12,Усл!$A$1:$B$851,2,FALSE)","v":"Cуглинок серый, твердомерзлый, сильнольдистый (льдистость от 0.40 д.е. до 0.60 д.е.), легкий, песчанистый, минеральный, незасоленный, с включением гравия и гальки до 5%.  Криотекстура средне-, мелкосетчатая, тонко-, среднешлировая (шлиры 1-20 мм через 1-50 мм)."}]
[4,{"$f":"VLOOKUP($G13,Усл!$A$1:$C$851,3,FALSE)","v":"m,gmII "},{"$f":"D12","v":6.5},12.5,{"$f":"D13-D12","v":6},{"$f":"F12-E13","v":-12.5},"340м-5",{"$f":"VLOOKUP(G13,Усл!$A$1:$B$851,2,FALSE)","v":"Cуглинок серый, твердомерзлый, льдистый (льдистость от 0.20 д.е. до 0.40 д.е.), легкий, песчанистый, минеральный, незасоленный, с включением гравия и гальки до 5%.  Криотекстура среднесетчатая, тонко- среднешлировая (шлиры 1-20 мм через 10-100 мм)."}]
[5,{"$f":"VLOOKUP($G14,Усл!$A$1:$C$851,3,FALSE)","v":"m,gmII "},{"$f":"D13","v":12.5},17,{"$f":"D14-D13","v":4.5},{"$f":"F13-E14","v":-17},"320м-5",{"$f":"VLOOKUP(G14,Усл!$A$1:$B$851,2,FALSE)","v":"Cуглинок темно-серый, твердомерзлый, слабольдистый (льдистость от 0.03 д.е. до 0.20 д.е.), легкий, песчанистый, минеральный, незасоленный,  с включением гравия и гальки до 5%.  Криотекстура редко-, среднеослоистая, тонкошлировая (шлиры 1-10 мм через 10-200 мм)."}]